[Event "Early-Titled-Tuesday-Blitz-January-16-2024"]
[Site "Chess.com"]
[Date "2024.01.16"]
[Round "7"]
[White "ritanovikova"]
[Black "cristiano78"]
[Result "1-0"]
[WhiteElo "2172"]
[BlackElo "2233"]
[TimeControl "180+1"]
[EndTime "9:20:35 PST"]
[Termination "ritanovikova won by resignation"]

1. e4 {[%clk 0:02:59.5]} 1... c5 {[%clk 0:02:58.3]} 2. Nc3 {[%clk 0:02:59.4]}
2... d6 {[%clk 0:02:58.4]} 3. d3 {[%clk 0:02:59.4]} 3... g6 {[%clk 0:02:58.4]}
4. g3 {[%clk 0:03:00.3]} 4... Bg7 {[%clk 0:02:58.5]} 5. Bg2 {[%clk 0:03:01.2]}
5... Nc6 {[%clk 0:02:59.2]} 6. Be3 {[%clk 0:03:00.9]} 6... Rb8 {[%clk
0:02:59.8]} 7. Nge2 {[%clk 0:03:00.9]} 7... Nd4 {[%clk 0:02:58.6]} 8. Qd2 {[%clk
0:03:00.4]} 8... b5 {[%clk 0:02:58.7]} 9. Nd1 {[%clk 0:02:58.7]} 9... Nxe2
{[%clk 0:02:57.8]} 10. Qxe2 {[%clk 0:02:58.1]} 10... Nf6 {[%clk 0:02:57.4]} 11.
h3 {[%clk 0:02:53.7]} 11... a5 {[%clk 0:02:54.1]} 12. O-O {[%clk 0:02:53.5]}
12... a4 {[%clk 0:02:54.1]} 13. a3 {[%clk 0:02:50.2]} 13... O-O {[%clk
0:02:52.9]} 14. Qd2 {[%clk 0:02:49.4]} 14... Bd7 {[%clk 0:02:48.7]} 15. Bh6
{[%clk 0:02:49]} 15... Qc8 {[%clk 0:02:48.6]} 16. Bxg7 {[%clk 0:02:48.9]} 16...
Kxg7 {[%clk 0:02:47.2]} 17. Kh2 {[%clk 0:02:48.8]} 17... b4 {[%clk 0:02:44.9]}
18. axb4 {[%clk 0:02:47.8]} 18... cxb4 {[%clk 0:02:45.5]} 19. f4 {[%clk
0:02:46.7]} 19... Qc6 {[%clk 0:02:41.7]} 20. e5 {[%clk 0:02:43.8]} 20... Nd5
{[%clk 0:02:41.8]} 21. Ne3 {[%clk 0:02:38]} 21... Be6 {[%clk 0:02:41.4]} 22. f5
{[%clk 0:02:27.6]} 22... gxf5 {[%clk 0:02:37.9]} 23. Bxd5 {[%clk 0:01:48.9]}
23... Bxd5 {[%clk 0:02:34.1]} 24. Nxf5+ {[%clk 0:01:43.9]} 24... Kh8 {[%clk
0:02:34]} 25. Nxe7 {[%clk 0:01:41.9]} 25... Qc5 {[%clk 0:02:30.6]} 26. d4 {[%clk
0:01:21.5]} 26... Qc4 {[%clk 0:02:27.7]} 27. Qf2 {[%clk 0:01:17.7]} 27... f5
{[%clk 0:02:22.2]} 28. exf6 {[%clk 0:01:10.5]} 28... Rf7 {[%clk 0:02:15.9]} 29.
b3 {[%clk 0:00:53.5]} 29... axb3 {[%clk 0:02:15.4]} 30. cxb3 {[%clk 0:00:54.4]}
30... Qb5 {[%clk 0:02:14.3]} 31. Qf5 {[%clk 0:00:49.7]} 31... Bc6 {[%clk
0:02:06.6]} 32. Nxc6 {[%clk 0:00:43.7]} 32... Qxc6 {[%clk 0:02:06.3]} 33. Rac1
{[%clk 0:00:39.6]} 33... Qb6 {[%clk 0:02:03.8]} 34. Qd5 {[%clk 0:00:38.6]} 34...
Rbf8 {[%clk 0:02:02.5]} 35. Rc6 {[%clk 0:00:37.9]} 35... Qa7 {[%clk 0:01:57.5]}
36. Rf2 {[%clk 0:00:36.8]} 36... Qa1 {[%clk 0:01:55.2]} 37. Rxd6 {[%clk
0:00:34.8]} 37... Qc3 {[%clk 0:01:47.4]} 38. Qxf7 {[%clk 0:00:33]} 1-0

[Event "Early-Titled-Tuesday-Blitz-January-16-2024"]
[Site "Chess.com"]
[Date "2024.01.16"]
[Round "7"]
[White "vasblesk"]
[Black "koncheto"]
[Result "1-0"]
[WhiteElo "2775"]
[BlackElo "2587"]
[TimeControl "180+1"]
[EndTime "9:20:42 PST"]
[Termination "vasblesk won by checkmate"]

1. d4 {[%clk 0:02:13.2]} 1... Nf6 {[%clk 0:02:59.3]} 2. c4 {[%clk 0:02:12.9]}
2... e6 {[%clk 0:02:59.8]} 3. Nf3 {[%clk 0:02:13.7]} 3... c5 {[%clk 0:03:00.7]}
4. g3 {[%clk 0:02:14]} 4... cxd4 {[%clk 0:03:00.8]} 5. Nxd4 {[%clk 0:02:13.5]}
5... Nc6 {[%clk 0:03:01.7]} 6. Bg2 {[%clk 0:02:13.6]} 6... Be7 {[%clk
0:03:00.3]} 7. O-O {[%clk 0:02:13]} 7... O-O {[%clk 0:03:00.9]} 8. Nc3 {[%clk
0:02:10.1]} 8... a6 {[%clk 0:03:01.4]} 9. b3 {[%clk 0:02:02.6]} 9... Qc7 {[%clk
0:03:01.3]} 10. Bb2 {[%clk 0:01:59.1]} 10... d6 {[%clk 0:03:01.7]} 11. Rc1
{[%clk 0:01:57.2]} 11... Nxd4 {[%clk 0:03:02.1]} 12. Qxd4 {[%clk 0:01:56.8]}
12... Bd7 {[%clk 0:03:03]} 13. Ne4 {[%clk 0:01:49.2]} 13... Rfd8 {[%clk
0:02:59.8]} 14. Rfd1 {[%clk 0:01:48.3]} 14... Bc6 {[%clk 0:02:57.7]} 15. Qd3
{[%clk 0:01:37.5]} 15... Rac8 {[%clk 0:02:22.6]} 16. Nxf6+ {[%clk 0:01:35.7]}
16... Bxf6 {[%clk 0:02:23]} 17. Bxf6 {[%clk 0:01:35.4]} 17... gxf6 {[%clk
0:02:23.9]} 18. e4 {[%clk 0:01:35.8]} 18... Qe7 {[%clk 0:02:04.8]} 19. Qe3
{[%clk 0:01:34]} 19... b5 {[%clk 0:02:04.4]} 20. cxb5 {[%clk 0:01:32.9]} 20...
axb5 {[%clk 0:02:01.8]} 21. h4 {[%clk 0:01:32.7]} 21... Ba8 {[%clk 0:01:57.4]}
22. h5 {[%clk 0:01:24]} 22... Rxc1 {[%clk 0:01:41.9]} 23. Rxc1 {[%clk
0:00:59.2]} 23... d5 {[%clk 0:01:41.7]} 24. exd5 {[%clk 0:00:47.4]} 24... Bxd5
{[%clk 0:01:40.6]} 25. Bxd5 {[%clk 0:00:47.7]} 25... Rxd5 {[%clk 0:01:40.4]} 26.
h6 {[%clk 0:00:45.5]} 26... f5 {[%clk 0:01:21.7]} 27. Rc8+ {[%clk 0:00:27.1]}
27... Rd8 {[%clk 0:01:20.9]} 28. Qd4 {[%clk 0:00:27.2]} 28... Rxc8 {[%clk
0:01:10.7]} 29. Qg7# {[%clk 0:00:25.9]} 1-0

[Event "Early-Titled-Tuesday-Blitz-January-16-2024"]
[Site "Chess.com"]
[Date "2024.01.16"]
[Round "7"]
[White "Rsnr"]
[Black "Konavets"]
[Result "0-1"]
[WhiteElo "2867"]
[BlackElo "3143"]
[TimeControl "180+1"]
[EndTime "9:20:45 PST"]
[Termination "Konavets won by resignation"]

1. d4 {[%clk 0:03:00.9]} 1... d5 {[%clk 0:03:00.3]} 2. c4 {[%clk 0:03:01.3]}
2... c6 {[%clk 0:03:01.2]} 3. Nf3 {[%clk 0:03:01.7]} 3... e6 {[%clk 0:03:01.3]}
4. Qc2 {[%clk 0:03:01]} 4... dxc4 {[%clk 0:03:00]} 5. Qxc4 {[%clk 0:03:01.9]}
5... b5 {[%clk 0:03:00.8]} 6. Qc2 {[%clk 0:03:02.2]} 6... Bb7 {[%clk 0:03:01.7]}
7. e4 {[%clk 0:02:57.9]} 7... a6 {[%clk 0:03:01.1]} 8. a4 {[%clk 0:02:39.5]}
8... Nd7 {[%clk 0:03:00.9]} 9. Be3 {[%clk 0:02:37.9]} 9... Ngf6 {[%clk
0:03:00.9]} 10. Bd3 {[%clk 0:01:29.4]} 10... Rc8 {[%clk 0:02:52.1]} 11. Qe2
{[%clk 0:01:18.1]} 11... Bb4+ {[%clk 0:02:38.2]} 12. Nbd2 {[%clk 0:01:18.1]}
12... c5 {[%clk 0:02:37.2]} 13. axb5 {[%clk 0:01:12.1]} 13... axb5 {[%clk
0:02:38.1]} 14. Bxb5 {[%clk 0:01:08]} 14... cxd4 {[%clk 0:02:35.5]} 15. Nxd4
{[%clk 0:01:05.3]} 15... O-O {[%clk 0:02:31.8]} 16. O-O {[%clk 0:01:02.9]} 16...
Nc5 {[%clk 0:02:28]} 17. e5 {[%clk 0:00:36.7]} 17... Nd5 {[%clk 0:02:25.4]} 18.
Nc4 {[%clk 0:00:34.1]} 18... Nxe3 {[%clk 0:02:19.3]} 19. Qxe3 {[%clk 0:00:35]}
19... Qd5 {[%clk 0:02:19.5]} 20. Nf3 {[%clk 0:00:34.3]} 20... Ne4 {[%clk
0:02:13.1]} 21. Nb6 {[%clk 0:00:05.7]} 21... Qxb5 {[%clk 0:02:13]} 22. Nxc8
{[%clk 0:00:06.4]} 22... Rxc8 {[%clk 0:02:13.8]} 23. Rfc1 {[%clk 0:00:06.5]}
23... Bc5 {[%clk 0:02:14.1]} 24. Nd4 {[%clk 0:00:05]} 24... Qxb2 {[%clk
0:02:13.7]} 25. Rab1 {[%clk 0:00:04.9]} 25... Qxd4 {[%clk 0:01:51.1]} 26. Qxd4
{[%clk 0:00:04.6]} 26... Bxd4 {[%clk 0:01:51.2]} 27. Rxc8+ {[%clk 0:00:05]}
27... Bxc8 {[%clk 0:01:52.1]} 28. Rb8 {[%clk 0:00:05.5]} 28... g6 {[%clk
0:01:49.9]} 29. Rxc8+ {[%clk 0:00:05.3]} 29... Kg7 {[%clk 0:01:50.6]} 30. g3
{[%clk 0:00:02]} 30... Nxf2 {[%clk 0:01:49.5]} 31. Kg2 {[%clk 0:00:02.2]} 31...
Ng4 {[%clk 0:01:49.5]} 32. Kf3 {[%clk 0:00:02.4]} 32... Nxh2+ {[%clk 0:01:47.2]}
33. Ke4 {[%clk 0:00:02.5]} 33... Bf2 {[%clk 0:01:47.1]} 34. Kf4 {[%clk
0:00:02.8]} 34... h5 {[%clk 0:01:46.4]} 35. Rc2 {[%clk 0:00:01.6]} 35... Ng4
{[%clk 0:01:47.3]} 36. Kf3 {[%clk 0:00:01.8]} 36... Bd4 {[%clk 0:01:47.6]} 0-1

[Event "Early-Titled-Tuesday-Blitz-January-16-2024"]
[Site "Chess.com"]
[Date "2024.01.16"]
[Round "7"]
[White "giomar27"]
[Black "FranciscodelaF"]
[Result "1-0"]
[WhiteElo "2420"]
[BlackElo "2259"]
[TimeControl "180+1"]
[EndTime "9:20:54 PST"]
[Termination "giomar27 won by checkmate"]

1. Nc3 {[%clk 0:03:00.9]} 1... e5 {[%clk 0:02:57.4]} 2. Nf3 {[%clk 0:03:00.9]}
2... Nc6 {[%clk 0:02:56.3]} 3. d4 {[%clk 0:03:00.9]} 3... exd4 {[%clk
0:02:31.7]} 4. Nxd4 {[%clk 0:03:01.8]} 4... Nxd4 {[%clk 0:02:28.2]} 5. Qxd4
{[%clk 0:03:01.7]} 5... Nf6 {[%clk 0:02:28.7]} 6. Bg5 {[%clk 0:03:01.5]} 6...
Be7 {[%clk 0:02:28.2]} 7. e4 {[%clk 0:03:01]} 7... O-O {[%clk 0:02:26.8]} 8. Bc4
{[%clk 0:03:01.2]} 8... Re8 {[%clk 0:02:17.1]} 9. O-O {[%clk 0:02:46.4]} 9... d6
{[%clk 0:01:54.3]} 10. Rfe1 {[%clk 0:02:46.5]} 10... h6 {[%clk 0:01:52.2]} 11.
Bf4 {[%clk 0:02:45]} 11... Nh5 {[%clk 0:01:43.7]} 12. Be3 {[%clk 0:02:43.7]}
12... Bf6 {[%clk 0:01:33.2]} 13. Qd2 {[%clk 0:02:36.3]} 13... Bxc3 {[%clk
0:01:20]} 14. bxc3 {[%clk 0:02:35.9]} 14... Rxe4 {[%clk 0:01:05.6]} 15. Qd5
{[%clk 0:02:31]} 15... Rxc4 {[%clk 0:00:55.6]} 16. Qxc4 {[%clk 0:02:30.3]} 16...
Be6 {[%clk 0:00:54.1]} 17. Qd3 {[%clk 0:02:30]} 17... Qh4 {[%clk 0:00:44.4]} 18.
g3 {[%clk 0:02:28.3]} 18... Qh3 {[%clk 0:00:40.6]} 19. c4 {[%clk 0:02:27.4]}
19... Nf6 {[%clk 0:00:37.3]} 20. Bd4 {[%clk 0:02:26]} 20... Ng4 {[%clk
0:00:33.7]} 21. Rab1 {[%clk 0:01:49.6]} 21... Re8 {[%clk 0:00:29.2]} 22. f3
{[%clk 0:01:41.3]} 22... Qxh2+ {[%clk 0:00:26.5]} 23. Kf1 {[%clk 0:01:41.1]}
23... Ne3+ {[%clk 0:00:20.5]} 24. Rxe3 {[%clk 0:01:32.4]} 24... Bh3+ {[%clk
0:00:20.3]} 25. Ke1 {[%clk 0:01:32.9]} 25... Qg1+ {[%clk 0:00:17.4]} 26. Kd2
{[%clk 0:01:29.3]} 26... Qf2+ {[%clk 0:00:15.2]} 27. Kc3 {[%clk 0:01:23.4]}
27... Rxe3 {[%clk 0:00:13.6]} 28. Qxe3 {[%clk 0:01:21.2]} 28... Qxg3 {[%clk
0:00:14.3]} 29. Rg1 {[%clk 0:01:18.1]} 29... Qh4 {[%clk 0:00:12.6]} 30. Qe8+
{[%clk 0:01:16.2]} 30... Kh7 {[%clk 0:00:12.7]} 31. Rxg7# {[%clk 0:01:17]} 1-0

[Event "Early-Titled-Tuesday-Blitz-January-16-2024"]
[Site "Chess.com"]
[Date "2024.01.16"]
[Round "7"]
[White "francyIM"]
[Black "MagnusCarlsen"]
[Result "0-1"]
[WhiteElo "2839"]
[BlackElo "3306"]
[TimeControl "180+1"]
[EndTime "9:21:06 PST"]
[Termination "MagnusCarlsen won by resignation"]

1. d4 {[%clk 0:02:55]} 1... h6 {[%clk 0:02:57.7]} 2. Nc3 {[%clk 0:02:51.8]} 2...
a6 {[%clk 0:02:56.5]} 3. a4 {[%clk 0:02:51.4]} 3... d5 {[%clk 0:02:54.2]} 4. Bf4
{[%clk 0:02:50.5]} 4... Nf6 {[%clk 0:02:53]} 5. e3 {[%clk 0:02:50.7]} 5... Bf5
{[%clk 0:02:51.1]} 6. Nf3 {[%clk 0:02:43.1]} 6... e6 {[%clk 0:02:51]} 7. Ne5
{[%clk 0:02:42.2]} 7... c5 {[%clk 0:02:49.3]} 8. g4 {[%clk 0:02:40.8]} 8... Bh7
{[%clk 0:02:49.2]} 9. h4 {[%clk 0:02:40.7]} 9... Nfd7 {[%clk 0:02:49.6]} 10. Bg2
{[%clk 0:02:34.6]} 10... cxd4 {[%clk 0:02:49.3]} 11. exd4 {[%clk 0:02:34.7]}
11... Nxe5 {[%clk 0:02:49.3]} 12. Bxe5 {[%clk 0:02:34.2]} 12... Nc6 {[%clk
0:02:49.6]} 13. Bg3 {[%clk 0:02:26.2]} 13... Qb6 {[%clk 0:02:48.6]} 14. O-O
{[%clk 0:02:22.3]} 14... Be7 {[%clk 0:02:43.1]} 15. Ne2 {[%clk 0:01:55.1]} 15...
Qxb2 {[%clk 0:02:42.2]} 16. c4 {[%clk 0:01:48.8]} 16... dxc4 {[%clk 0:02:37.1]}
17. d5 {[%clk 0:01:48]} 17... exd5 {[%clk 0:02:36]} 18. Nf4 {[%clk 0:01:48.3]}
18... O-O {[%clk 0:02:33.9]} 19. Nxd5 {[%clk 0:01:48]} 19... c3 {[%clk
0:02:25.8]} 20. Nxe7+ {[%clk 0:01:38.4]} 20... Nxe7 {[%clk 0:02:26.7]} 21. Qd6
{[%clk 0:01:35]} 21... Nc6 {[%clk 0:02:23.3]} 22. Bxc6 {[%clk 0:01:18.2]} 22...
bxc6 {[%clk 0:02:23]} 23. Be5 {[%clk 0:01:18.7]} 23... Qe2 {[%clk 0:02:10.5]}
24. Bxc3 {[%clk 0:01:15.6]} 24... Qxg4+ {[%clk 0:02:09.2]} 25. Qg3 {[%clk
0:00:56.7]} 25... Qxg3+ {[%clk 0:02:06.9]} 26. fxg3 {[%clk 0:00:57.6]} 26...
Rab8 {[%clk 0:02:05.4]} 27. Rf4 {[%clk 0:00:52.5]} 27... Rb3 {[%clk 0:02:00.4]}
28. Rc1 {[%clk 0:00:51.9]} 28... Re8 {[%clk 0:01:59.1]} 29. Rg4 {[%clk
0:00:50.7]} 29... Bg6 {[%clk 0:01:54.5]} 30. h5 {[%clk 0:00:49.8]} 30... Re4
{[%clk 0:01:55.1]} 31. Rxe4 {[%clk 0:00:42]} 31... Bxe4 {[%clk 0:01:56]} 32. Kf2
{[%clk 0:00:41.6]} 32... f6 {[%clk 0:01:49.1]} 33. Ke3 {[%clk 0:00:38.6]} 33...
Bd5 {[%clk 0:01:48.4]} 34. g4 {[%clk 0:00:38]} 34... Ra3 {[%clk 0:01:48]} 35. a5
{[%clk 0:00:37.4]} 35... Be6 {[%clk 0:01:46.8]} 36. Kd4 {[%clk 0:00:19.1]} 36...
Bxg4 {[%clk 0:01:46.1]} 37. Kc5 {[%clk 0:00:19.6]} 37... Bxh5 {[%clk 0:01:46.3]}
38. Rc2 {[%clk 0:00:12.5]} 38... Bg6 {[%clk 0:01:45.3]} 39. Rc1 {[%clk
0:00:12.7]} 39... Bd3 {[%clk 0:01:45.9]} 40. Kxc6 {[%clk 0:00:12.6]} 40... Rb3
{[%clk 0:01:45.6]} 41. Kd6 {[%clk 0:00:12.4]} 41... Rb1 {[%clk 0:01:44.4]} 0-1

[Event "Early-Titled-Tuesday-Blitz-January-16-2024"]
[Site "Chess.com"]
[Date "2024.01.16"]
[Round "7"]
[White "IMRosen"]
[Black "scarabee43"]
[Result "0-1"]
[WhiteElo "2648"]
[BlackElo "2816"]
[TimeControl "180+1"]
[EndTime "9:21:14 PST"]
[Termination "scarabee43 won by resignation"]

1. e4 {[%clk 0:03:00.9]} 1... c5 {[%clk 0:02:59.9]} 2. Nc3 {[%clk 0:02:59.6]}
2... Nc6 {[%clk 0:02:59.2]} 3. Bb5 {[%clk 0:02:54.9]} 3... Nd4 {[%clk
0:02:58.4]} 4. Nf3 {[%clk 0:02:54.4]} 4... e6 {[%clk 0:02:56.7]} 5. O-O {[%clk
0:02:53.6]} 5... a6 {[%clk 0:02:55]} 6. Bd3 {[%clk 0:02:54.2]} 6... Nc6 {[%clk
0:02:55.1]} 7. Be2 {[%clk 0:02:54.2]} 7... Nf6 {[%clk 0:02:54]} 8. d4 {[%clk
0:02:54.1]} 8... c4 {[%clk 0:02:54.1]} 9. Bxc4 {[%clk 0:02:53.2]} 9... Bb4
{[%clk 0:02:48.4]} 10. e5 {[%clk 0:02:38.5]} 10... Bxc3 {[%clk 0:02:38.6]} 11.
exf6 {[%clk 0:02:35.4]} 11... Bb4 {[%clk 0:02:36.5]} 12. fxg7 {[%clk 0:02:35.5]}
12... Rg8 {[%clk 0:02:37.1]} 13. d5 {[%clk 0:02:29.5]} 13... Na5 {[%clk
0:02:32.9]} 14. Bd3 {[%clk 0:02:15.5]} 14... Qf6 {[%clk 0:02:32.3]} 15. c3
{[%clk 0:01:48.6]} 15... Qxg7 {[%clk 0:02:29.3]} 16. g3 {[%clk 0:01:42.4]} 16...
Be7 {[%clk 0:02:26.4]} 17. Bf4 {[%clk 0:00:50.7]} 17... b5 {[%clk 0:02:23.1]}
18. b4 {[%clk 0:00:30]} 18... Nc4 {[%clk 0:02:17.5]} 19. a4 {[%clk 0:00:24.3]}
19... Nb2 {[%clk 0:02:02.4]} 20. Qe2 {[%clk 0:00:23.9]} 20... Nxa4 {[%clk
0:02:02.1]} 21. dxe6 {[%clk 0:00:19.7]} 21... dxe6 {[%clk 0:01:51.4]} 22. Qe4
{[%clk 0:00:16.4]} 22... Ra7 {[%clk 0:01:48.9]} 23. Be5 {[%clk 0:00:13.4]} 23...
Qg6 {[%clk 0:01:44.5]} 24. Qd4 {[%clk 0:00:09]} 24... Rd7 {[%clk 0:01:44.9]} 25.
Bxg6 {[%clk 0:00:08.5]} 25... Rxd4 {[%clk 0:01:44.9]} 26. Bxf7+ {[%clk
0:00:07.8]} 26... Kxf7 {[%clk 0:01:45.2]} 27. Nxd4 {[%clk 0:00:07.2]} 27... Nxc3
{[%clk 0:01:44.5]} 28. Nxe6 {[%clk 0:00:03.6]} 28... Ne2+ {[%clk 0:01:44.1]} 29.
Kg2 {[%clk 0:00:04]} 29... Bxe6 {[%clk 0:01:44.3]} 30. Rxa6 {[%clk 0:00:03.6]}
30... Bc4 {[%clk 0:01:42.6]} 31. Re1 {[%clk 0:00:03.8]} 31... Bxb4 {[%clk
0:01:42.6]} 32. Rd1 {[%clk 0:00:03.7]} 32... Re8 {[%clk 0:01:41.2]} 33. Rd7+
{[%clk 0:00:03.7]} 33... Re7 {[%clk 0:01:41.4]} 34. Rxe7+ {[%clk 0:00:03.7]}
34... Bxe7 {[%clk 0:01:41.8]} 35. Ra7 {[%clk 0:00:03.7]} 35... Ke6 {[%clk
0:01:41.3]} 36. Bg7 {[%clk 0:00:03.2]} 36... Bc5 {[%clk 0:01:40.3]} 37. f4
{[%clk 0:00:03.6]} 37... Bxa7 {[%clk 0:01:40.2]} 38. g4 {[%clk 0:00:03.6]} 38...
Nxf4+ {[%clk 0:01:39.4]} 39. Kg3 {[%clk 0:00:04]} 39... Ng6 {[%clk 0:01:39.5]}
40. h4 {[%clk 0:00:04.1]} 40... Bb8+ {[%clk 0:01:40.1]} 41. Kh3 {[%clk
0:00:04.5]} 41... Nf4+ {[%clk 0:01:40.1]} 42. Kg3 {[%clk 0:00:02.8]} 42... Nh5+
{[%clk 0:01:40.5]} 43. Kf3 {[%clk 0:00:03.4]} 43... Nxg7 {[%clk 0:01:40.8]} 44.
g5 {[%clk 0:00:04.3]} 44... Kf5 {[%clk 0:01:40.7]} 45. Ke3 {[%clk 0:00:04.2]}
45... Ne6 {[%clk 0:01:40.2]} 46. h5 {[%clk 0:00:05.1]} 46... Kxg5 {[%clk
0:01:39.6]} 47. h6 {[%clk 0:00:06]} 47... Kxh6 {[%clk 0:01:40]} 48. Kd2 {[%clk
0:00:06.7]} 48... Kg5 {[%clk 0:01:40.3]} 0-1

[Event "Early-Titled-Tuesday-Blitz-January-16-2024"]
[Site "Chess.com"]
[Date "2024.01.16"]
[Round "7"]
[White "guillembaches"]
[Black "ChessSwole"]
[Result "1/2-1/2"]
[WhiteElo "2525"]
[BlackElo "2693"]
[TimeControl "180+1"]
[EndTime "9:21:23 PST"]
[Termination "Game drawn by repetition"]

1. d4 {[%clk 0:03:00.9]} 1... d5 {[%clk 0:02:57.4]} 2. Nf3 {[%clk 0:03:01.5]}
2... Nf6 {[%clk 0:02:56.2]} 3. Bg5 {[%clk 0:03:02.1]} 3... Ne4 {[%clk
0:02:56.4]} 4. Bf4 {[%clk 0:03:02.6]} 4... c5 {[%clk 0:02:56.8]} 5. e3 {[%clk
0:03:03]} 5... Nc6 {[%clk 0:02:57.2]} 6. c3 {[%clk 0:03:02.8]} 6... Qb6 {[%clk
0:02:57.1]} 7. Qb3 {[%clk 0:03:02.5]} 7... c4 {[%clk 0:02:57.3]} 8. Qc2 {[%clk
0:03:02.5]} 8... Bf5 {[%clk 0:02:55.9]} 9. Qc1 {[%clk 0:03:02.6]} 9... e6 {[%clk
0:02:55.6]} 10. Nbd2 {[%clk 0:03:01.6]} 10... Bd6 {[%clk 0:02:53.4]} 11. Nxe4
{[%clk 0:02:41.7]} 11... Bxf4 {[%clk 0:02:52.7]} 12. exf4 {[%clk 0:02:40.4]}
12... Bxe4 {[%clk 0:02:52.4]} 13. Be2 {[%clk 0:02:35.3]} 13... O-O {[%clk
0:02:51.4]} 14. O-O {[%clk 0:02:35.3]} 14... Qc7 {[%clk 0:02:51]} 15. Ne5 {[%clk
0:02:31.3]} 15... b5 {[%clk 0:02:48.1]} 16. Nxc6 {[%clk 0:02:27.4]} 16... Qxc6
{[%clk 0:02:49]} 17. a3 {[%clk 0:02:18.5]} 17... a5 {[%clk 0:02:48.7]} 18. h4
{[%clk 0:02:11]} 18... Rfb8 {[%clk 0:02:47.5]} 19. g4 {[%clk 0:01:55.8]} 19...
h6 {[%clk 0:02:46.2]} 20. g5 {[%clk 0:01:52.1]} 20... hxg5 {[%clk 0:02:45.2]}
21. hxg5 {[%clk 0:01:52.2]} 21... b4 {[%clk 0:02:42.1]} 22. axb4 {[%clk
0:01:49.2]} 22... axb4 {[%clk 0:02:43]} 23. f3 {[%clk 0:01:41.4]} 23... Bf5
{[%clk 0:02:41.3]} 24. Kf2 {[%clk 0:01:41]} 24... Rxa1 {[%clk 0:02:33.1]} 25.
Qxa1 {[%clk 0:01:40.6]} 25... Qc7 {[%clk 0:02:32.5]} 26. Ke3 {[%clk 0:01:37.2]}
26... Qb7 {[%clk 0:02:16.5]} 27. Rh1 {[%clk 0:01:29.7]} 27... Ra8 {[%clk
0:02:13.1]} 28. Qe1 {[%clk 0:01:24.2]} 28... bxc3 {[%clk 0:02:09.3]} 29. Qh4
{[%clk 0:01:14.2]} 29... Kf8 {[%clk 0:02:09.6]} 30. bxc3 {[%clk 0:01:00.1]}
30... Ra2 {[%clk 0:01:44.9]} 31. Qh8+ {[%clk 0:00:51.9]} 31... Ke7 {[%clk
0:01:44.9]} 32. Qxg7 {[%clk 0:00:51.2]} 32... Bg6 {[%clk 0:01:26.9]} 33. Rh8
{[%clk 0:00:38.8]} 33... Rxe2+ {[%clk 0:01:04.4]} 34. Kxe2 {[%clk 0:00:38]}
34... Qb2+ {[%clk 0:01:04.5]} 35. Kf1 {[%clk 0:00:28.3]} 35... Qc1+ {[%clk
0:00:59.9]} 36. Kg2 {[%clk 0:00:26.6]} 36... Qd2+ {[%clk 0:00:57.6]} 37. Kg3
{[%clk 0:00:24.6]} 37... Qe1+ {[%clk 0:00:57.4]} 38. Kg2 {[%clk 0:00:25]} 38...
Qe2+ {[%clk 0:00:57.4]} 39. Kg3 {[%clk 0:00:25.5]} 39... Qe1+ {[%clk 0:00:56.9]}
40. Kg2 {[%clk 0:00:25.9]} 40... Qe2+ {[%clk 0:00:57.2]} 41. Kg3 {[%clk
0:00:26.3]} 41... Qe1+ {[%clk 0:00:54.2]} 1/2-1/2

[Event "Early-Titled-Tuesday-Blitz-January-16-2024"]
[Site "Chess.com"]
[Date "2024.01.16"]
[Round "7"]
[White "Maestro-Fermin"]
[Black "Happy1712Drummer"]
[Result "1-0"]
[WhiteElo "2620"]
[BlackElo "2476"]
[TimeControl "180+1"]
[EndTime "9:21:23 PST"]
[Termination "Maestro-Fermin won on time"]

1. d4 {[%clk 0:03:00.9]} 1... e6 {[%clk 0:02:54.3]} 2. c4 {[%clk 0:02:58.4]}
2... Nf6 {[%clk 0:02:52.9]} 3. Nc3 {[%clk 0:02:57.7]} 3... d5 {[%clk 0:02:51.3]}
4. Bg5 {[%clk 0:02:56.8]} 4... a6 {[%clk 0:02:50.5]} 5. e3 {[%clk 0:02:54]} 5...
Be7 {[%clk 0:02:48.8]} 6. Nf3 {[%clk 0:02:53.2]} 6... O-O {[%clk 0:02:47.6]} 7.
Rc1 {[%clk 0:02:52.9]} 7... h6 {[%clk 0:02:45.2]} 8. Bf4 {[%clk 0:02:51.9]} 8...
c5 {[%clk 0:02:34]} 9. dxc5 {[%clk 0:02:42.8]} 9... Nc6 {[%clk 0:02:26.8]} 10.
cxd5 {[%clk 0:02:38]} 10... exd5 {[%clk 0:02:25.6]} 11. Be2 {[%clk 0:02:36.7]}
11... Bxc5 {[%clk 0:02:18.2]} 12. O-O {[%clk 0:02:36.6]} 12... Ba7 {[%clk
0:02:14.7]} 13. Na4 {[%clk 0:02:30.8]} 13... Re8 {[%clk 0:02:10.7]} 14. h3
{[%clk 0:02:29.2]} 14... Ne4 {[%clk 0:02:07]} 15. a3 {[%clk 0:02:24.4]} 15...
Be6 {[%clk 0:01:54.5]} 16. Nd4 {[%clk 0:02:20.8]} 16... Nxd4 {[%clk 0:01:39.4]}
17. exd4 {[%clk 0:02:21.7]} 17... Qf6 {[%clk 0:01:36.8]} 18. Be5 {[%clk
0:02:10.6]} 18... Qg6 {[%clk 0:01:31.9]} 19. Bh5 {[%clk 0:02:03.8]} 19... Qg5
{[%clk 0:01:30]} 20. f4 {[%clk 0:01:59]} 20... Qh4 {[%clk 0:01:20.8]} 21. Bf3
{[%clk 0:01:39.6]} 21... Ng3 {[%clk 0:00:56.5]} 22. Re1 {[%clk 0:01:32.9]} 22...
f6 {[%clk 0:00:43.3]} 23. Bc7 {[%clk 0:01:28.6]} 23... Nf5 {[%clk 0:00:12.1]}
24. Rxe6 {[%clk 0:01:24.2]} 24... Bxd4+ {[%clk 0:00:08.7]} 25. Kh1 {[%clk
0:01:12.4]} 25... Rxe6 {[%clk 0:00:09.1]} 26. Bxd5 {[%clk 0:01:11.9]} 26... Re8
{[%clk 0:00:08.7]} 27. Bb6 {[%clk 0:01:00.3]} 27... Kh8 {[%clk 0:00:06.2]} 28.
Bxe6 {[%clk 0:00:59.3]} 28... Bxb6 {[%clk 0:00:04.4]} 29. Nxb6 {[%clk
0:00:58.9]} 29... Rxe6 {[%clk 0:00:04.2]} 30. Qd8+ {[%clk 0:00:58.5]} 30... Kh7
{[%clk 0:00:04]} 31. Qd3 {[%clk 0:00:59.1]} 1-0